fUST/lending_fUST_20250428
["ID","MTS","AMOUNT","RATE_DAILY","PERIOD"]
[359199740,1745805047995,-1364.75,0.0003688,42]
[359199741,1745805048010,-2824.38915834,0.00036898,120]
[359199742,1745805048021,-1364.75,0.0003698,76]
[359199743,1745805048033,-504.45,0.00036986,2]
[359199744,1745805048044,-794.32,0.00036986,2]
[359199745,1745805048055,-400.0,0.00036986,2]
[359199746,1745805048066,-500.0,0.00037,120]
[359199747,1745805048078,-64084.98263502,0.00037,6]
[359199748,1745805048088,-160.0,0.00037,52]
[359199749,1745805048099,-151.0,0.00037,14]
[359199750,1745805048109,-1364.75,0.0003708,74]
[359199751,1745805048122,-200.0,0.00037133,120]
[359199752,1745805048133,-1364.75,0.0003718,39]
[359199753,1745805048145,-199492.72,0.000372,30]
[359199754,1745805048156,-1028.55,0.000372,7]
[359199755,1745805048167,-205.97077518,0.0003721,13]
[359199756,1745805048179,-504.45,0.0003726,2]
[359199757,1745805048189,-794.32,0.0003726,2]
[359199758,1745805048200,-400.0,0.0003726,2]
[359199759,1745805048211,-1364.75,0.0003728,54]
[359199760,1745805048222,-1364.75,0.0003738,76]
[359199761,1745805048232,-393.89764,0.000374,120]
[359199762,1745805048243,-200.0,0.000374,120]
[359199763,1745805048255,-263.17964695,0.00037464,2]
[359199764,1745805048267,-1364.75,0.0003748,76]
[359199765,1745805048277,-2000.0,0.000375,15]
[359199766,1745805048289,-2000.0,0.000375,15]
[359199767,1745805048300,-2000.0,0.000375,15]
[359199768,1745805048311,-2000.0,0.000375,15]
[359199769,1745805048322,-2000.0,0.000375,15]
[359199770,1745805048332,-2000.0,0.000375,15]
[359199771,1745805048343,-2000.0,0.000375,15]
[359199772,1745805048354,-2000.0,0.000375,120]
[359199773,1745805048364,-2000.0,0.000375,15]
[359199774,1745805048375,-2000.0,0.000375,15]
[359199775,1745805048386,-2000.0,0.000375,15]
[359199776,1745805048395,-2000.0,0.000375,15]
[359199777,1745805048407,-2000.0,0.000375,15]
[359199778,1745805048417,-2000.0,0.000375,15]
[359199779,1745805048429,-2000.0,0.000375,15]
[359199780,1745805048440,-2000.0,0.000375,15]
[359199781,1745805048450,-2000.0,0.000375,15]
[359199782,1745805048460,-2000.0,0.000375,15]
[359199783,1745805048471,-2000.0,0.000375,15]
[359199784,1745805048618,-2000.0,0.000375,15]
[359199785,1745805048637,-2000.0,0.000375,15]
[359199786,1745805048648,-2000.0,0.000375,15]
[359199787,1745805048657,-2000.0,0.000375,15]
[359199788,1745805048666,-2000.0,0.000375,15]
[359199789,1745805048676,-2000.0,0.000375,15]
[359199790,1745805048685,-150.0,0.000375,112]
[359199791,1745805048695,-2000.0,0.000375,15]
[359199792,1745805048704,-156.29393,0.000375,14]
[359199793,1745805048714,-151.0,0.000375,14]
[359199794,1745805048723,-284.365086,0.000375,2]
[359199795,1745805048732,-151.0,0.000375,14]
[359199796,1745805048741,-284.365086,0.000375,2]
[359199797,1745805048752,-200.0,0.00037517,120]
[359199798,1745805048762,-8044.79726238,0.00037521,2]
[359199799,1745805048772,-151.0,0.00037521,14]
[359199800,1745805048782,-257.581357,0.00037521,14]
[359199801,1745805048791,-151.0,0.00037521,2]
[359199802,1745805048800,-504.45,0.00037534,2]
[359199803,1745805048810,-794.32,0.00037534,2]
[359199804,1745805048820,-400.0,0.00037534,2]
[359199805,1745805048829,-1364.75,0.0003758,84]
[359199806,1745805048839,-1011.7016543,0.000376,10]
[359199807,1745805048848,-205.97077518,0.00037659,14]
[359199808,1745805048857,-1364.75,0.0003768,41]
[359199809,1745805048867,-2663.75,0.000377,30]
[359199810,1745805048876,-1864.15274901,0.000377,14]
[359199811,1745805048886,-1364.75,0.0003778,41]
[359199812,1745805048896,-1007.06579768,0.000378,2]
[359199813,1745805048906,-205.07812058,0.000378,2]
[359199814,1745805048917,-504.45,0.00037808,2]
[359199815,1745805048928,-794.32,0.00037808,2]
[359199816,1745805048938,-400.0,0.00037808,2]
[359199817,1745805048947,-1364.75,0.0003788,40]
[359199818,1745805048957,-446.1726341,0.000379,2]
[359199819,1745805048967,-553061.5124592,0.000379,60]
[359199820,1745805049062,-2404.01680746,0.000379,60]
[359199821,1745805049073,-3146.02491548,0.000379,60]
[359199822,1745805049084,-142481.30502421,0.000379,60]
[359199823,1745805049094,-151.0,0.000379,14]
[359199824,1745805049104,-151.0,0.000379,14]
[359199825,1745805049113,-284.365086,0.000379,2]
[359199826,1745805049123,-151.0,0.000379,14]
[359199827,1745805049132,-284.365086,0.000379,2]
[359199828,1745805049142,-151.0,0.000379,14]
[359199829,1745805049152,-151.0,0.000379,2]
[359199830,1745805049163,-1364.75,0.0003798,64]
[359199831,1745805049173,-500.0,0.00038,10]
[359199832,1745805049184,-2000.0,0.00038,120]
[359199833,1745805049194,-500.0,0.00038,30]
[359199834,1745805049204,-1000.0,0.00038,120]
[359199835,1745805049214,-500.0,0.00038,120]
[359199836,1745805049225,-1349.1186904,0.00038,120]
[359199837,1745805049235,-160.0,0.00038,55]
[359199838,1745805049246,-840.21051354,0.00038,7]
[359199839,1745805049261,-1364.75,0.0003808,33]
[359199840,1745805049271,-504.45,0.00038082,2]
[359199841,1745805049282,-794.32,0.00038082,2]
[359199842,1745805049292,-400.0,0.00038082,2]
[359199843,1745805049301,-205.97077518,0.00038107,14]
[359199844,1745805049311,-730.54011311,0.00038141,2]
[359199845,1745805049322,-250.0,0.00038164,4]
[359199846,1745805049333,-1364.75,0.0003818,77]
[359199847,1745805049343,-1364.75,0.0003828,72]
[359199848,1745805049353,-1028.55,0.000383,7]
[359199849,1745805049363,-1000.0,0.00038352,5]
[359199850,1745805049374,-973.57752091,0.00038352,5]
[359199851,1745805049384,-610.73069903,0.00038352,5]
[359199852,1745805049394,-501.67699737,0.00038352,5]
[359199853,1745805049404,-504.45,0.00038356,2]
[359199854,1745805049414,-794.32,0.00038356,2]
[359199855,1745805049424,-400.0,0.00038356,2]
[359199856,1745805049434,-1387.38580344,0.00038356,120]
[359199857,1745805049443,-241.58823024,0.00038356,2]
[359199858,1745805049453,-200.0,0.00038356,5]
[359199859,1745805049463,-1500.0,0.00038356,5]
[359199860,1745805049473,-25724.84213384,0.00038356,5]
[359199861,1745805049483,-10459.90192506,0.00038357,120]
[359199862,1745805049492,-281.06829801,0.00038357,120]
[359199863,1745805049505,-1364.75,0.0003838,120]
[359199864,1745805049514,-34028.51310366,0.000384,30]
[359199865,1745805049527,-1903.96890738,0.000384,30]
[359199866,1745805049538,-2092.09656746,0.000384,30]
[359199867,1745805049554,-400.0,0.00033972,2]
[359199868,1745805049564,-999.31768399,0.000384,30]
[359199869,1745805049630,-400.0,0.00032876,2]
[359199870,1745805049640,-400.0,0.00032876,2]
[359199871,1745805049650,-400.0,0.0003315,2]
[359199872,1745805049662,-400.0,0.0003315,2]
[359199873,1745805049671,-400.0,0.00033424,2]
[359199874,1745805049681,-94.9320572,0.00033424,2]
[359199875,1745805049694,-105.0679428,0.00033424,2]
[359199876,1745805049703,-400.0,0.00033698,2]
[359199877,1745805049714,-400.0,0.00033972,2]
[359199878,1745805049723,-400.0,0.00034246,2]
[359199879,1745805049733,-144.93205721,0.0003452,2]
[359199880,1745805049758,-400.0,0.00032876,2]
[359199881,1745805049767,-400.0,0.0003315,2]
[359199882,1745805049777,-213.69027371,0.00033424,2]
[359199883,1745805049787,-255.06794279,0.0003452,2]
[359199884,1745805049797,-400.0,0.00034794,2]
[359199885,1745805049806,-400.0,0.00035068,2]
[359199886,1745805049815,-150.69,0.00035342,2]
[359199887,1745805049824,-154336.03545491,0.000384,30]
[359199889,1745805050246,-33.8185255,0.000384,30]
[359199890,1745805050259,-2792.33601125,0.000384,30]
[359199891,1745805050270,-3306.63374585,0.000384,30]
[359199892,1745805050279,-200.0,0.00038411,120]
[359199893,1745805050289,-1364.75,0.0003848,120]
[359199894,1745805050298,-384.0,0.000385,7]
[359199895,1745805050307,-255.8,0.000385,120]
[359199896,1745805050316,-159.8424525,0.00038521,30]
[359199897,1745805050326,-154.3421313,0.00038521,30]
[359199898,1745805050335,-153.0,0.00038521,30]
[359199899,1745805050344,-153.0,0.00038521,30]
[359199900,1745805050354,-153.0,0.00038521,30]
[359199901,1745805050364,-153.0,0.00038521,30]
[359199902,1745805050373,-295.0597301,0.00038521,30]
[359199903,1745805050382,-205.97077518,0.00038555,14]
[359199904,1745805050392,-1364.75,0.0003858,120]
[359199905,1745805050401,-2663.75,0.000386,30]
[359199906,1745805050410,-504.45,0.0003863,2]
[359199907,1745805050419,-794.32,0.0003863,2]
[359199908,1745805050428,-400.0,0.0003863,2]
[359199909,1745805050438,-502.07616643,0.00038652,5]
[359199910,1745805050447,-500.98923359,0.00038652,5]
[359199911,1745805050456,-500.84525244,0.00038652,5]
[359199912,1745805050466,-1364.75,0.0003868,120]
[359199913,1745805050475,-200.0,0.00038715,120]
[359199914,1745805050484,-151096.04,0.0003878,10]
[359199915,1745805050494,-1364.75,0.0003878,120]
[359199916,1745805050504,-605949.28,0.0003888,10]
[359199917,1745805050514,-27487.31,0.0003888,10]
[359199918,1745805050523,-1364.75,0.0003888,120]
[359199919,1745805050532,-504.45,0.00038904,2]
[359199920,1745805050541,-794.32,0.00038904,2]
[359199921,1745805050550,-374.9425,0.00038904,2]
[359199922,1745805050559,-1500.0,0.00038933,2]
[359199923,1745805050569,-1364.75,0.0003898,120]
[359199924,1745805050578,-1000.0,0.00039,2]
[359199925,1745805050587,-217.94657128,0.00039,120]
[359199926,1745805050596,-200.0,0.00039,120]
[359199927,1745805050606,-3000.0,0.00039,120]
[359199928,1745805050615,-15095.47140457,0.00039,120]
[359199929,1745805050624,-1932.48082028,0.00039,120]
[359199930,1745805050633,-1000.0,0.00039,15]
[359199931,1745805050642,-3877.77920361,0.00039,120]
[359199932,1745805050651,-10000.0,0.00039,120]
[359199933,1745805050660,-593.45881672,0.00039,120]
[359199934,1745805050669,-500.0,0.00039,120]
[359199935,1745805050678,-354.0,0.00039,120]
[359199936,1745805050690,-160.0,0.00039,58]
[359199937,1745805050700,-205.97077518,0.00039003,14]
[359199938,1745805050709,-189.0456,0.00039034,2]
[359199939,1745805050719,-1364.75,0.0003908,120]
[359199940,1745805050729,-205.07812057,0.00039159,120]
[359199941,1745805050739,-1363.51305988,0.00039159,120]
[359199942,1745805050748,-263.17964695,0.00039159,2]
[359199943,1745805050759,-177.53230175,0.00039159,3]
[359199944,1745805050768,-504.45018286,0.00039178,2]
[359199945,1745805050777,-794.33208517,0.00039178,2]
[359199946,1745805050787,-1364.75,0.0003918,120]
[359199947,1745805050796,-151.0,0.00039251,14]
[359199948,1745805050805,-284.365086,0.00039251,2]
[359199949,1745805050814,-284.365086,0.00039251,2]
[359199950,1745805050823,-1000.0,0.00039258,28]
[359199951,1745805050833,-1000.0,0.00039258,28]
[359199952,1745805050842,-1000.0,0.00039258,28]
[359199953,1745805050851,-1000.0,0.00039258,28]
[359199954,1745805050860,-1000.0,0.00039258,28]
[359199955,1745805050869,-1000.0,0.00039258,28]
[359199956,1745805050879,-1000.0,0.00039258,28]
[359199957,1745805050888,-1000.0,0.00039258,28]
[359199958,1745805050897,-1000.0,0.00039258,28]
[359199959,1745805050906,-1000.0,0.00039258,28]
[359199960,1745805050918,-1000.0,0.00039258,28]
[359199961,1745805050928,-1000.0,0.00039258,28]
[359199962,1745805050938,-1000.0,0.00039258,28]
[359199963,1745805050947,-1000.0,0.00039258,28]
[359199964,1745805050956,-1000.0,0.00039258,28]
[359199965,1745805050966,-859.52837537,0.00039258,28]
[359199966,1745805050980,-140.47162463,0.00039258,28]
[359199967,1745805050989,-173.41294261,0.00039258,28]
[359199968,1745805051002,-826.58705739,0.00039258,28]
[359199969,1745805051011,-1000.0,0.00039258,28]
[359199970,1745805051021,-1000.0,0.00039258,28]
[359199971,1745805051031,-1000.0,0.00039258,28]
[359199972,1745805051040,-1000.0,0.00039258,28]
[359199973,1745805051050,-1000.0,0.00039258,28]
[359199974,1745805051060,-1000.0,0.00039258,28]
[359199975,1745805051069,-1000.0,0.00039258,28]
[359199976,1745805051079,-1000.0,0.00039258,28]
[359199977,1745805051088,-294.887073,0.00039258,28]
[359199978,1745805051098,-151.0,0.00039259,14]
[359199979,1745805051107,-151.0,0.00039259,14]
[359199980,1745805051117,-151.0,0.00039259,14]
[359199982,1745805051127,-151.0,0.00039259,14]
[359199983,1745805051136,-152.380427,0.00039259,14]
[359199984,1745805051146,-175.066053,0.00039259,14]
[359199985,1745805051155,-284.365086,0.00039259,2]
[359199986,1745805051165,-284.365086,0.00039259,2]
[359199987,1745805051175,-151.0,0.00039259,14]
[359199988,1745805051184,-284.365086,0.00039259,2]
[359199989,1745805051193,-151.0,0.00039259,14]
[359199990,1745805051202,-284.365086,0.00039259,2]
[359199991,1745805051212,-210.336538,0.00039259,14]
[359199992,1745805051221,-284.365086,0.00039259,2]
[359199993,1745805051231,-284.365086,0.00039259,2]
[359199994,1745805051240,-284.365086,0.00039259,2]
[359199995,1745805051250,-284.365086,0.00039259,2]
[359199996,1745805051260,-284.365086,0.00039259,2]
[359199997,1745805051270,-284.365086,0.00039259,2]
[359199998,1745805051280,-284.365086,0.00039259,2]
[359199999,1745805051290,-284.365086,0.00039259,2]
[359200000,1745805051299,-284.365086,0.00039259,2]
[359200001,1745805051309,-284.365082,0.00039259,2]
[359200002,1745805051319,-151.0,0.00039259,14]
[359200003,1745805051332,-151.0,0.00039259,14]
[359200004,1745805051342,-151.0,0.00039259,14]
[359200005,1745805051351,-151.0,0.00039259,14]
[359200006,1745805051361,-151.0,0.00039259,14]
[359200007,1745805051373,-151.0,0.00039259,14]
[359200008,1745805051385,-151.0,0.00039259,14]
[359200009,1745805051394,-151.0,0.00039259,14]
[359200010,1745805051403,-151.0,0.00039259,2]
[359200011,1745805051414,-151.0,0.00039259,2]
[359200012,1745805051423,-151.0,0.00039259,2]
[359200013,1745805051435,-151.0,0.00039259,2]
[359200014,1745805051445,-151.0,0.00039259,2]
[359200015,1745805051454,-153.693212,0.00039259,2]
[359200016,1745805051463,-90674.23729718,0.00039259,2]
[359200017,1745805051473,-300.0,0.00039259,2]
[359200018,1745805051483,-3857.12920404,0.00039259,2]
[359200019,1745805051492,-804.80073149,0.00039259,2]
[359200020,1745805051502,-253.2470425,0.00039259,2]
[359200021,1745805051511,-295.08025207,0.00039259,2]
[359200022,1745805051520,-817.30032064,0.00039259,2]
[359200023,1745805051531,-325.02872754,0.00039259,2]
[359200024,1745805051541,-1202.13048853,0.00039259,2]
[359200025,1745805051550,-290.08038449,0.00039259,2]
[359200026,1745805051559,-51412.9299958,0.00039259,2]
[359200027,1745805051569,-633.37841522,0.00039259,2]
[359200028,1745805051578,-155.67047508,0.00039259,2]
[359200029,1745805051696,-10243.4384807,0.00039259,2]
[359200030,1745805051710,-6254.48796017,0.00039259,2]
[359200031,1745805051719,-156.68406804,0.00039259,2]
[359200032,1745805051729,-523.63473191,0.00039259,2]
[359200033,1745805051738,-443.61298949,0.00039259,2]
[359200034,1745805051748,-1589.0,0.00039259,3]
[359200035,1745805051759,-1858.21731779,0.00039259,2]
[359200036,1745805051769,-504.52143661,0.00039259,2]
[359200037,1745805051779,-13696.44759504,0.00039259,2]
[359200038,1745805051788,-1864.04415639,0.00039259,2]
[359200039,1745805051797,-178.07430484,0.00039259,2]
[359200040,1745805051807,-465.22459264,0.00039259,2]
[359200041,1745805051816,-1776.86360473,0.00039259,3]
[359200042,1745805051826,-30267.24135866,0.00039259,2]
[359200044,1745805051835,-28456.90987941,0.00039259,2]
[359200045,1745805051844,-188.0490802,0.00039259,2]
[359200046,1745805051854,-1388.22627274,0.00039259,2]
[359200047,1745805051863,-583.19208512,0.00039259,2]
[359200048,1745805051873,-301.32820247,0.00039259,2]
[359200049,1745805051882,-5858.68190474,0.00039259,2]
[359200050,1745805051892,-647.27484362,0.00039259,2]
[359200051,1745805051901,-2920.0,0.00039259,2]
[359200052,1745805051911,-1493.08472254,0.00039259,2]
[359200053,1745805051926,-10010.54911539,0.00039259,2]
[359200054,1745805051936,-20029.80576478,0.00039259,2]
[359200055,1745805051947,-3025.21741487,0.00039259,2]
[359200056,1745805051958,-21171.27182815,0.00039259,7]
[359200057,1745805051967,-191.91529182,0.00039259,12]
[359200058,1745805051977,-44851.91840461,0.00039259,20]
[359200060,1745805052017,-19.70104259,0.00039259,20]
[359200061,1745805052029,-716.5618136,0.00039259,20]
[359200065,1745805052421,-400.0,0.00032876,2]
[359200066,1745805052431,-400.0,0.00032876,2]
[359200067,1745805052440,-336.33643636,0.0003315,2]
[359200087,1745805065616,9334.23,0.00025,30]
[359200275,1745805174451,-167.18574883,0.00023939,2]
[359200276,1745805174475,-76.60299213,0.00024039,2]
[359200700,1745805935130,-152.68707532,0.00023939,2]
[359200701,1745805935152,-421.20781996,0.00024023,2]
[359200702,1745805935173,-160.0,0.00024023,2]
[359200703,1745805935192,-85.08579448,0.00024027,2]
[359200715,1745806155081,-300.0,0.00024015,2]
[359200716,1745806155100,-160.0,0.00024016,2]
[359200717,1745806155124,-10864.72685075,0.00024016,2]
[359200752,1745806232508,-300.0,0.00024038,2]
[359200753,1745806232519,-141.90600787,0.00024039,2]
[359200754,1745806232530,-546.851,0.00024039,2]
[359200756,1745806232541,-2258.773,0.00024039,2]
[359200758,1745806232552,-708.504,0.00024039,2]
[359200760,1745806232562,-284.63673856,0.00024793,2]
[359200762,1745806232573,-160.0,0.00024952,2]
[359200764,1745806232584,-160.0,0.00024952,2]
[359200766,1745806232595,-358.87637487,0.00024957,2]
[359200768,1745806232610,-82.10938135,0.00024957,2]
[359200769,1745806232620,-604.06,0.00025,2]
[359200770,1745806232631,-205.97077518,0.000259,6]
[359200771,1745806232642,-189.0,0.00026,2]
[359200772,1745806232653,-420.0,0.00026067,2]
[359200773,1745806232663,-213.18624297,0.00026613,2]
[359200774,1745806232673,-313.28589057,0.00027,3]
[359200775,1745806232682,-171.34770993,0.00027,3]
[359200776,1745806232695,-141.93818064,0.00027,3]
[359200777,1745806232705,-313.28589057,0.00027,3]
[359200778,1745806232717,-205.97077518,0.00027067,7]
[359200779,1745806232728,-840.21051354,0.00027259,2]
[359200780,1745806232738,-157.90778817,0.00027297,2]
[359200781,1745806232749,-385.1148519,0.00027368,2]
[359200782,1745806232764,-605.45,0.00027368,2]
[359200790,1745806238463,-405.945,0.00024455,2]
[359200791,1745806238474,-6847.5015863,0.00027368,2]
[359200792,1745806238485,-500.0,0.00027397,2]
[359200793,1745806238496,-500.0,0.00027397,2]
[359200794,1745806238510,-3891.681213,0.00027397,120]
[359200795,1745806238522,-1500.0,0.00027397,2]
[359200796,1745806238533,-500.0,0.00027397,5]
[359200797,1745806238544,-397.15332,0.000275,120]
[359200798,1745806238554,-200.0,0.000275,120]
[359200799,1745806238566,-188.826431,0.00027678,2]
[359200800,1745806238577,-1788.0,0.000278,2]
[359200801,1745806238588,-205.97077518,0.00028233,7]
[359200802,1745806238599,-337.0,0.00028267,2]
[359200803,1745806238611,-205.97077518,0.000294,8]
[359200804,1745806238622,-190.81,0.0003,3]
[359200805,1745806238634,-223.0,0.0003,2]
[359200806,1745806238645,-157.90778817,0.00030258,2]
[359200807,1745806238656,-205.97077518,0.00030567,9]
[359200808,1745806238666,-188.826431,0.00031102,2]
[359200809,1745806238677,-205.97077518,0.00031733,10]
[359200810,1745806238688,-500.0,0.00031962,2]
[359200811,1745806238698,-500.0,0.00031962,2]
[359200812,1745806238710,-3891.681213,0.00031963,120]
[359200813,1745806238720,-500.0,0.00032563,2]
[359200814,1745806238731,-160.0,0.00032633,2]
[359200815,1745806238742,-267.91435599,0.0003279,2]
[359200816,1745806238752,-999999.0,0.0003286,7]
[359200817,1745806238762,-567.67471456,0.00032865,2]
[359200818,1745806238773,-165.8777615,0.00032865,2]
[359200819,1745806238783,-176616.729684,0.00032866,2]
[359200821,1745806238793,-400.0,0.00032876,2]
[359200823,1745806238804,-400.0,0.00032876,2]
[359200825,1745806238815,-400.0,0.00032876,2]
[359200827,1745806238824,-400.0,0.00032876,2]
[359200829,1745806238835,-179.46,0.00032876,2]
[359200830,1745806238845,-162.252,0.00032876,33]
[359200831,1745806238855,-400.0,0.00032876,2]
[359200832,1745806238866,-400.0,0.00032876,2]
[359200833,1745806238877,-400.0,0.00032876,2]
[359200834,1745806238888,-400.0,0.00032876,2]
[359200835,1745806238898,-400.0,0.00032876,2]
[359200836,1745806238909,-400.0,0.00032876,2]
[359200837,1745806238921,-400.0,0.00032876,2]
[359200838,1745806238932,-400.0,0.00032876,2]
[359200839,1745806238944,-400.0,0.00032876,2]
[359200840,1745806238954,-400.0,0.00032876,2]
[359200841,1745806238966,-327.27635408,0.00032876,2]
[359200842,1745806238977,-500.0,0.00032876,2]
[359200843,1745806238987,-400.0,0.00032876,2]
[359200844,1745806238998,-396.6888331,0.00032876,2]
[359200845,1745806239009,-500.0,0.00032876,2]
[359200846,1745806239019,-400.0,0.00032876,2]
[359200847,1745806239030,-400.0,0.00032876,2]
[359200848,1745806239040,-208.92058154,0.00032876,2]
[359200849,1745806239227,-400.0,0.00032876,2]
[359200850,1745806239241,-400.0,0.00032876,2]
[359200851,1745806239250,-400.0,0.00032876,2]
[359200852,1745806239264,-400.0,0.00032876,2]
[359200853,1745806239274,-400.0,0.00032876,2]
[359200854,1745806239284,-400.0,0.00032876,2]
[359200855,1745806239293,-400.0,0.00032876,2]
[359200856,1745806239303,-400.0,0.00032876,2]
[359200857,1745806239313,-500.0,0.00032876,2]
[359200858,1745806239323,-500.0,0.00032876,2]
[359200859,1745806239333,-400.0,0.00032876,2]
[359200860,1745806239343,-400.0,0.00032876,2]
[359200861,1745806239353,-400.0,0.00032876,2]
[359200862,1745806239363,-400.0,0.00032876,2]
[359200863,1745806239371,-500.0,0.00032876,2]
[359200864,1745806239381,-400.0,0.00032876,2]
[359200865,1745806239391,-400.0,0.00032876,2]
[359200866,1745806239400,-400.0,0.00032876,2]
[359200867,1745806239410,-400.0,0.00032876,2]
[359200868,1745806239419,-500.0,0.00032876,2]
[359200869,1745806239429,-400.0,0.00032876,2]
[359200870,1745806239439,-521.37185973,0.00032876,2]
[359200871,1745806239448,-400.0,0.00032876,2]
[359200872,1745806239457,-400.0,0.00032876,2]
[359200873,1745806239468,-400.0,0.00032876,2]
[359200874,1745806239477,-500.0,0.00032876,2]
[359200875,1745806239487,-400.0,0.00032876,2]
[359200876,1745806239496,-400.0,0.00032876,2]
[359200877,1745806239507,-400.0,0.00032876,2]
[359200878,1745806239517,-400.0,0.00032876,2]
[359200879,1745806239526,-400.0,0.00032876,2]
[359200880,1745806239536,-400.0,0.00032876,2]
[359200881,1745806239547,-400.0,0.00032876,2]
[359200882,1745806239556,-400.0,0.00032876,2]
[359200883,1745806239566,-400.0,0.00032876,2]
[359200884,1745806239575,-400.0,0.00032876,2]
[359200885,1745806239586,-400.0,0.00032876,2]
[359200886,1745806239596,-400.0,0.00032876,2]
[359200887,1745806239606,-400.0,0.00032876,2]
[359200888,1745806239616,-400.0,0.00032876,2]
[359200889,1745806239626,-400.0,0.00032876,2]
[359200890,1745806239635,-400.0,0.00032876,2]
[359200891,1745806239645,-400.0,0.00032876,2]
[359200892,1745806239654,-400.0,0.00032876,2]
[359200893,1745806239664,-400.0,0.00032876,2]
[359200894,1745806239673,-500.0,0.00032876,2]
[359200895,1745806239683,-400.0,0.00032876,2]
[359200896,1745806239692,-400.0,0.00032876,2]
[359200897,1745806239702,-400.0,0.00032876,2]
[359200898,1745806239711,-400.0,0.00032876,2]
[359200899,1745806239721,-400.0,0.00032876,2]
[359200900,1745806239731,-400.0,0.00032876,2]
[359200901,1745806239741,-400.0,0.00032876,2]
[359200902,1745806239751,-400.0,0.00032876,2]
[359200903,1745806239760,-483.73040803,0.00032876,2]
[359200904,1745806239770,-400.0,0.00032876,2]
[359200905,1745806239779,-262.85,0.00032876,2]
[359200906,1745806239788,-400.0,0.00032876,2]
[359200907,1745806239798,-400.0,0.00032876,2]
[359200908,1745806239807,-400.0,0.00032876,2]
[359200909,1745806239817,-400.0,0.00032876,2]
[359200910,1745806239826,-151.91912265,0.00032876,2]
[359200911,1745806239835,-197.62514844,0.00032876,2]
[359200912,1745806239845,-400.0,0.00032876,2]
[359200913,1745806239855,-400.0,0.00032876,2]
[359200914,1745806239865,-400.0,0.00032876,2]
[359200915,1745806239874,-331.46132002,0.00032876,2]
[359200916,1745806239884,-400.0,0.00032876,2]
[359200917,1745806239894,-400.0,0.00032876,2]
[359200918,1745806239903,-400.0,0.00032876,2]
[359200919,1745806239912,-400.0,0.00032876,2]
[359200920,1745806239922,-419.87423725,0.00032876,2]
[359200921,1745806239931,-515.35749028,0.00032876,2]
[359200922,1745806239940,-393.75339431,0.00032876,2]
[359200923,1745806239950,-400.0,0.00032876,2]
[359200924,1745806239959,-510.31606272,0.00032876,2]
[359200925,1745806239968,-400.0,0.00032876,2]
[359200926,1745806239977,-400.0,0.00032876,2]
[359200927,1745806239986,-400.0,0.00032876,2]
[359200928,1745806239996,-400.0,0.00032876,2]
[359200929,1745806240005,-400.0,0.00032876,2]
[359200930,1745806240014,-400.0,0.00032876,2]
[359200931,1745806240023,-400.0,0.00032876,2]
[359200932,1745806240033,-400.0,0.00032876,2]
[359200933,1745806240042,-400.0,0.00032876,2]
[359200934,1745806240052,-400.0,0.00032876,2]
[359200935,1745806240061,-501.42281392,0.00032876,2]
[359200936,1745806240071,-400.0,0.00032876,2]
[359200937,1745806240080,-400.0,0.00032876,2]
[359200938,1745806240090,-400.0,0.00032876,2]
[359200940,1745806240099,-400.0,0.00032876,2]